fUST/lending_fUST_20240219
["ID","MTS","AMOUNT","RATE_DAILY","PERIOD"]
[314440310,1708354260502,-500.0,0.00027945,2]
[314440311,1708354260512,-500.0,0.00027945,2]
[314440312,1708354260521,-500.0,0.00027945,2]
[314440313,1708354260530,-500.0,0.00027945,2]
[314440314,1708354260540,-2783.83,0.00027945,2]
[314440315,1708354260549,-500.0,0.00027945,2]
[314440316,1708354260560,-3622.61,0.00027945,2]
[314440317,1708354260569,-500.0,0.00027945,2]
[314440318,1708354260579,-500.0,0.00027945,2]
[314440319,1708354260588,-500.0,0.00027945,2]
[314440320,1708354260597,-513.8,0.00027945,2]
[314440321,1708354260606,-1202.24,0.00027945,2]
[314440322,1708354260615,-500.0,0.00027945,2]
[314440323,1708354260624,-4802.22,0.00027945,2]
[314440324,1708354260634,-500.0,0.00027945,2]
[314440325,1708354260645,-12001.78,0.00027945,2]
[314440326,1708354260654,-500.0,0.00027945,2]
[314440327,1708354260663,-393.55315148,0.00027945,2]
[314440328,1708354260672,-500.0,0.00027945,2]
[314440329,1708354260681,-567.58827599,0.00027945,2]
[314440330,1708354260690,-500.0,0.00027945,2]
[314440331,1708354260701,-500.0,0.00027945,2]
[314440332,1708354260710,-500.0,0.00027945,2]
[314440333,1708354260720,-2107.93,0.00027945,2]
[314440334,1708354260729,-500.0,0.00027945,2]
[314440335,1708354260739,-500.0,0.00027945,2]
[314440336,1708354260748,-16588.96,0.00027945,2]
[314440337,1708354260758,-500.0,0.00027945,2]
[314440338,1708354260768,-500.0,0.00027945,2]
[314440339,1708354260776,-500.0,0.00027945,2]
[314440340,1708354260786,-513.35012764,0.00027945,2]
[314440341,1708354260795,-33364.76,0.00027945,2]
[314440342,1708354260804,-500.0,0.00027945,2]
[314440343,1708354260814,-500.0,0.00027945,2]
[314440344,1708354260825,-500.0,0.00027945,2]
[314440345,1708354260834,-500.0,0.00027945,2]
[314440346,1708354260845,-500.0,0.00027945,2]
[314440347,1708354260857,-4587.01,0.00027945,2]
[314440348,1708354260866,-4214.46,0.00027945,2]
[314440349,1708354260875,-6913.34,0.00027945,2]
[314440350,1708354260885,-211.325192,0.00027945,2]
[314440351,1708354260895,-500.0,0.00027945,2]
[314440352,1708354260905,-500.0,0.00027945,2]
[314440353,1708354260988,-500.0,0.00027945,2]
[314440354,1708354260998,-500.0,0.00027945,2]
[314440355,1708354261008,-500.0,0.00027945,2]
[314440356,1708354261017,-310.99511171,0.00027945,2]
[314440357,1708354261026,-500.0,0.00027945,2]
[314440358,1708354261035,-500.0,0.00027945,2]
[314440359,1708354261044,-500.0,0.00027945,2]
[314440360,1708354261053,-872.81,0.00027945,2]
[314440361,1708354261063,-500.0,0.00027945,2]
[314440362,1708354261073,-2961.95,0.00027945,2]
[314440363,1708354261082,-500.0,0.00027945,2]
[314440364,1708354261091,-500.0,0.00027945,2]
[314440365,1708354261101,-500.0,0.00027945,2]
[314440366,1708354261111,-500.0,0.00027945,2]
[314440367,1708354261120,-2699.05,0.00027945,2]
[314440368,1708354261129,-500.0,0.00027945,2]
[314440369,1708354261138,-500.0,0.00027945,2]
[314440370,1708354261148,-500.0,0.00027945,2]
[314440371,1708354261157,-2133.3,0.00027945,2]
[314440372,1708354261167,-500.0,0.00027945,2]
[314440373,1708354261177,-500.0,0.00027945,2]
[314440374,1708354261186,-500.0,0.00027945,2]
[314440375,1708354261195,-500.0,0.00027945,2]
[314440376,1708354261205,-410.82512941,0.00027945,2]
[314440377,1708354261214,-503.49593108,0.00027945,2]
[314440378,1708354261223,-500.0,0.00027945,2]
[314440379,1708354261232,-771.6,0.00027945,2]
[314440380,1708354261241,-558.79,0.00027945,2]
[314440381,1708354261251,-3641.35,0.00027945,2]
[314440382,1708354261260,-878.75,0.00027945,2]
[314440383,1708354261271,-1018.76,0.00027945,2]
[314440384,1708354261282,-7048.41,0.00027945,2]
[314440385,1708354261291,-500.0,0.00027945,2]
[314440386,1708354261300,-500.0,0.00027945,2]
[314440387,1708354261311,-500.0,0.00027945,2]
[314440388,1708354261320,-500.0,0.00027945,2]
[314440389,1708354261330,-500.0,0.00027945,2]
[314440390,1708354261339,-500.0,0.00027945,2]
[314440391,1708354261348,-500.0,0.00027945,2]
[314440392,1708354261358,-500.0,0.00027945,2]
[314440393,1708354261367,-500.0,0.00027945,2]
[314440394,1708354261377,-200.0,0.00027945,2]
[314440395,1708354261386,-500.0,0.00027945,2]
[314440396,1708354261395,-500.0,0.00027945,2]
[314440397,1708354261405,-500.0,0.00027945,2]
[314440398,1708354261415,-617.55,0.00027945,2]
[314440399,1708354261424,-2069.33,0.00027945,2]
[314440400,1708354261435,-680.15,0.00027945,2]
[314440401,1708354261444,-500.0,0.00027945,2]
[314440402,1708354261453,-706.39,0.00027945,2]
[314440403,1708354261462,-850.47,0.00027945,2]
[314440404,1708354261472,-500.0,0.00027945,2]
[314440405,1708354261481,-500.0,0.00027945,2]
[314440406,1708354261490,-500.0,0.00027945,2]
[314440407,1708354261499,-1335.89,0.00027945,2]
[314440408,1708354261509,-1159.58,0.00027945,2]
[314440409,1708354261517,-500.0,0.00027945,2]
[314440410,1708354261527,-500.0,0.00027945,2]
[314440411,1708354261536,-390.0,0.00027945,2]
[314440412,1708354261545,-500.0,0.00027945,2]
[314440413,1708354261554,-3533.09,0.00027945,2]
[314440414,1708354261564,-500.0,0.00027945,2]
[314440415,1708354261573,-500.0,0.00027945,2]
[314440416,1708354261581,-500.0,0.00027945,2]
[314440417,1708354261590,-4651.23,0.00027945,2]
[314440418,1708354261599,-334.32560697,0.00027945,2]
[314440419,1708354261608,-23407.0,0.00027945,2]
[314440420,1708354261617,-500.0,0.00027945,2]
[314440421,1708354261626,-500.0,0.00027945,2]
[314440422,1708354261635,-500.0,0.00027945,2]
[314440423,1708354261645,-500.0,0.00027945,2]
[314440424,1708354261654,-500.0,0.00027945,2]
[314440425,1708354261663,-500.0,0.00027945,2]
[314440426,1708354261672,-1027.2,0.00027945,2]
[314440427,1708354261681,-1000.0,0.00027945,2]
[314440428,1708354261691,-500.0,0.00027945,2]
[314440429,1708354261700,-5168.31,0.00027945,2]
[314440430,1708354261710,-544.69,0.00027945,2]
[314440431,1708354261719,-500.0,0.00027945,2]
[314440432,1708354261727,-500.0,0.00027945,2]
[314440433,1708354261737,-500.0,0.00027945,2]
[314440434,1708354261746,-500.0,0.00027945,2]
[314440435,1708354261755,-500.0,0.00027945,2]
[314440436,1708354261764,-386.0765516,0.00027945,2]
[314440437,1708354261773,-590.43,0.00027945,2]
[314440438,1708354261783,-500.0,0.00027945,2]
[314440439,1708354261792,-306.6753708,0.00027945,2]
[314440440,1708354261801,-153.0,0.00027945,2]
[314440441,1708354261811,-153.0,0.00027945,2]
[314440442,1708354261820,-153.0,0.00027945,2]
[314440443,1708354261829,-153.0,0.00027945,2]
[314440444,1708354261838,-153.0,0.00027945,2]
[314440445,1708354261848,-153.0,0.00027945,2]
[314440446,1708354261858,-153.0,0.00027945,2]
[314440447,1708354261867,-153.0,0.00027945,2]
[314440448,1708354261876,-306.0,0.00027945,2]
[314440449,1708354261885,-153.0,0.00027945,2]
[314440450,1708354261896,-153.0,0.00027945,2]
[314440451,1708354261905,-153.0,0.00027945,2]
[314440452,1708354261915,-300.0,0.00027985,2]
[314440453,1708354261924,-162.36324726,0.00027999,10]
[314440454,1708354261933,-155.04341216,0.00028,2]
[314440455,1708354261943,-366.91632202,0.00028,2]
[314440456,1708354261953,-128199.59631268,0.00028,7]
[314440457,1708354261964,-1000.0,0.00028,28]
[314440458,1708354261973,-500.0,0.00028,2]
[314440459,1708354261982,-902946.32350046,0.00028,20]
[314440460,1708354261991,-620.00181609,0.00028025,2]
[314440461,1708354262000,-500.0,0.00028082,2]
[314440462,1708354262010,-155.694993,0.0002812,2]
[314440463,1708354262019,-266.303242,0.0002812,2]
[314440464,1708354262028,-162.019119,0.0002812,2]
[314440465,1708354262037,-405.844811,0.0002812,2]
[314440466,1708354262046,-601.123714,0.0002812,2]
[314440467,1708354262055,-300.0,0.00028132,2]
[314440468,1708354262065,-150.1,0.00028193,2]
[314440469,1708354262074,-500.0,0.00028219,2]
[314440470,1708354262084,-500.0,0.00028219,2]
[314440471,1708354262093,-500.0,0.00028219,2]
[314440472,1708354262102,-500.0,0.00028219,2]
[314440473,1708354262111,-500.0,0.00028219,2]
[314440474,1708354262120,-594.29,0.00028219,2]
[314440475,1708354262130,-500.0,0.00028219,2]
[314440476,1708354262139,-405.32086978,0.00028219,2]
[314440477,1708354262151,-501.7147221,0.00028219,2]
[314440478,1708354262160,-500.0,0.00028219,2]
[314440479,1708354262241,-500.0,0.00028219,2]
[314440480,1708354262251,-154.53459983,0.00028219,2]
[314440481,1708354262261,-500.0,0.00028219,2]
[314440482,1708354262274,-500.0,0.00028219,2]
[314440483,1708354262283,-1217.96,0.00028219,2]
[314440484,1708354262293,-500.0,0.00028219,2]
[314440485,1708354262302,-846.5,0.00028219,2]
[314440486,1708354262311,-549.86,0.00028219,2]
[314440487,1708354262322,-500.0,0.00028219,2]
[314440488,1708354262331,-500.0,0.00028219,2]
[314440489,1708354262340,-151.0,0.00028219,2]
[314440490,1708354262350,-500.0,0.00028219,2]
[314440491,1708354262359,-500.0,0.00028219,2]
[314440492,1708354262368,-500.0,0.00028219,2]
[314440493,1708354262377,-1942.3,0.00028219,2]
[314440494,1708354262386,-500.0,0.00028219,2]
[314440495,1708354262397,-500.0,0.00028219,2]
[314440496,1708354262406,-476.29224553,0.00028219,2]
[314440497,1708354262415,-500.0,0.00028219,2]
[314440498,1708354262425,-540.31214767,0.00028219,2]
[314440499,1708354262434,-500.0,0.00028219,2]
[314440500,1708354262443,-705.19,0.00028219,2]
[314440501,1708354262452,-584.06,0.00028219,2]
[314440502,1708354262461,-1509.57,0.00028219,2]
[314440503,1708354262470,-500.0,0.00028219,2]
[314440504,1708354262480,-500.0,0.00028219,2]
[314440505,1708354262489,-500.0,0.00028219,2]
[314440506,1708354262498,-500.0,0.00028219,2]
[314440507,1708354262507,-501.85859077,0.00028219,2]
[314440508,1708354262516,-4894.68,0.00028219,2]
[314440509,1708354262526,-500.0,0.00028219,2]
[314440510,1708354262536,-500.0,0.00028219,2]
[314440511,1708354262545,-500.0,0.00028219,2]
[314440512,1708354262554,-500.0,0.00028219,2]
[314440513,1708354262563,-500.0,0.00028219,2]
[314440514,1708354262572,-1000.0,0.00028219,2]
[314440515,1708354262581,-500.0,0.00028219,2]
[314440516,1708354262590,-500.0,0.00028219,2]
[314440517,1708354262600,-500.0,0.00028219,2]
[314440518,1708354262609,-500.0,0.00028219,2]
[314440519,1708354262618,-500.0,0.00028219,2]
[314440520,1708354262627,-500.0,0.00028219,2]
[314440521,1708354262637,-1113.08,0.00028219,2]
[314440522,1708354262648,-500.0,0.00028219,2]
[314440523,1708354262658,-500.0,0.00028219,2]
[314440524,1708354262667,-500.0,0.00028219,2]
[314440525,1708354262676,-500.0,0.00028219,2]
[314440526,1708354262685,-500.0,0.00028219,2]
[314440527,1708354262695,-1000.0,0.00028219,2]
[314440528,1708354262704,-1146.52,0.00028219,2]
[314440529,1708354262714,-500.0,0.00028219,2]
[314440530,1708354262723,-500.0,0.00028219,2]
[314440531,1708354262733,-624.15,0.00028219,2]
[314440532,1708354262742,-500.0,0.00028219,2]
[314440533,1708354262752,-500.0,0.00028219,2]
[314440534,1708354262762,-500.0,0.00028219,2]
[314440535,1708354262771,-500.0,0.00028219,2]
[314440536,1708354262780,-500.0,0.00028219,2]
[314440537,1708354262789,-500.0,0.00028219,2]
[314440538,1708354262798,-500.0,0.00028219,2]
[314440539,1708354262808,-555.4,0.00028219,2]
[314440540,1708354262817,-579.60384803,0.00028219,2]
[314440541,1708354262827,-522.91,0.00028219,2]
[314440542,1708354262836,-500.0,0.00028219,2]
[314440543,1708354262846,-500.0,0.00028219,2]
[314440544,1708354262857,-500.0,0.00028219,2]
[314440545,1708354262866,-500.0,0.00028219,2]
[314440546,1708354262875,-1000.0,0.00028219,2]
[314440547,1708354262885,-500.0,0.00028219,2]
[314440548,1708354262896,-500.0,0.00028219,2]
[314440549,1708354262906,-500.0,0.00028219,2]
[314440550,1708354262915,-500.0,0.00028219,2]
[314440551,1708354262925,-500.0,0.00028219,2]
[314440552,1708354262934,-500.0,0.00028219,2]
[314440553,1708354262945,-610.31,0.00028219,2]
[314440554,1708354262955,-164.99008821,0.00028219,2]
[314440555,1708354262965,-502.17446308,0.00028219,2]
[314440556,1708354262975,-1495.56,0.00028219,2]
[314440557,1708354262986,-500.0,0.00028219,2]
[314440558,1708354262996,-500.0,0.00028219,2]
[314440559,1708354263007,-500.0,0.00028219,2]
[314440560,1708354263017,-500.0,0.00028219,2]
[314440561,1708354263035,-500.0,0.00028219,2]
[314440562,1708354263050,-500.0,0.00028219,2]
[314440563,1708354263060,-500.0,0.00028219,2]
[314440564,1708354263070,-667.9,0.00028219,2]
[314440565,1708354263080,-500.0,0.00028219,2]
[314440566,1708354263090,-500.0,0.00028219,2]
[314440567,1708354263099,-500.0,0.00028219,2]
[314440568,1708354263108,-500.0,0.00028219,2]
[314440569,1708354263117,-500.0,0.00028219,2]
[314440570,1708354263126,-500.0,0.00028219,2]
[314440571,1708354263135,-979.16,0.00028219,2]
[314440572,1708354263145,-556.06890107,0.00028219,2]
[314440573,1708354263155,-500.0,0.00028219,2]
[314440574,1708354263164,-500.0,0.00028219,2]
[314440575,1708354263173,-500.0,0.00028219,2]
[314440576,1708354263182,-500.0,0.00028219,2]
[314440577,1708354263191,-500.0,0.00028219,2]
[314440578,1708354263200,-500.0,0.00028219,2]
[314440579,1708354263209,-544.29,0.00028219,2]
[314440580,1708354263218,-500.0,0.00028219,2]
[314440581,1708354263227,-561.36843785,0.00028219,2]
[314440582,1708354263236,-1266.27,0.00028219,2]
[314440583,1708354263245,-1389.85,0.00028219,2]
[314440584,1708354263254,-1263.76,0.00028219,2]
[314440585,1708354263263,-500.0,0.00028219,2]
[314440586,1708354263273,-500.0,0.00028219,2]
[314440587,1708354263282,-3215.25,0.00028219,2]
[314440588,1708354263290,-1117.79,0.00028219,2]
[314440589,1708354263299,-500.0,0.00028219,2]
[314440590,1708354263308,-174.01109417,0.00028219,2]
[314440591,1708354263317,-500.0,0.00028219,2]
[314440592,1708354263326,-500.0,0.00028219,2]
[314440593,1708354263334,-500.0,0.00028219,2]
[314440594,1708354263408,-500.0,0.00028219,2]
[314440595,1708354263418,-500.0,0.00028219,2]
[314440596,1708354263427,-500.0,0.00028219,2]
[314440597,1708354263435,-5852.21,0.00028219,2]
[314440598,1708354263444,-658.58,0.00028219,2]
[314440599,1708354263454,-500.0,0.00028219,15]
[314440600,1708354263462,-500.0,0.00028219,2]
[314440601,1708354263472,-633.66,0.00028219,2]
[314440602,1708354263480,-500.0,0.00028219,2]
[314440603,1708354263489,-500.0,0.00028219,2]
[314440604,1708354263498,-542.52114899,0.00028219,2]
[314440605,1708354263507,-500.0,0.00028219,2]
[314440606,1708354263517,-446.33820771,0.00028219,2]
[314440607,1708354263525,-500.0,0.00028219,2]
[314440608,1708354263534,-500.0,0.00028219,2]
[314440609,1708354263543,-500.0,0.00028219,2]
[314440610,1708354263552,-500.0,0.00028219,2]
[314440611,1708354263561,-500.0,0.00028219,2]
[314440612,1708354263570,-500.0,0.00028219,2]
[314440613,1708354263578,-500.0,0.00028219,2]
[314440614,1708354263587,-500.0,0.00028219,2]
[314440615,1708354263597,-3437.99,0.00028219,2]
[314440616,1708354263605,-500.0,0.00028219,2]
[314440617,1708354263614,-503.57,0.00028219,2]
[314440618,1708354263623,-500.0,0.00028219,2]
[314440619,1708354263633,-500.0,0.00028219,2]
[314440620,1708354263643,-500.0,0.00028219,2]
[314440621,1708354263654,-500.0,0.00028219,2]
[314440622,1708354263662,-500.0,0.00028219,2]
[314440623,1708354263671,-500.0,0.00028219,2]
[314440624,1708354263680,-500.0,0.00028219,2]
[314440625,1708354263689,-500.0,0.00028219,2]
[314440626,1708354263697,-500.0,0.00028219,2]
[314440627,1708354263707,-500.0,0.00028219,2]
[314440628,1708354263715,-500.0,0.00028219,2]
[314440629,1708354263724,-786.47,0.00028219,2]
[314440630,1708354263733,-500.0,0.00028219,2]
[314440631,1708354263742,-500.0,0.00028219,2]
[314440632,1708354263750,-500.0,0.00028219,2]
[314440633,1708354263759,-500.0,0.00028219,2]
[314440634,1708354263768,-583.42,0.00028219,2]
[314440635,1708354263777,-1163.99,0.00028219,2]
[314440636,1708354263785,-500.0,0.00028219,2]
[314440637,1708354263794,-500.0,0.00028219,2]
[314440638,1708354263803,-500.0,0.00028219,2]
[314440639,1708354263811,-500.0,0.00028219,2]
[314440640,1708354263821,-500.0,0.00028219,2]
[314440641,1708354263831,-596.91,0.00028219,2]
[314440642,1708354263840,-500.0,0.00028219,2]
[314440643,1708354263850,-500.0,0.00028219,2]
[314440644,1708354263860,-500.0,0.00028219,2]
[314440645,1708354263869,-500.0,0.00028219,2]
[314440646,1708354263878,-829.73,0.00028219,2]
[314440647,1708354263892,-500.0,0.00028219,2]
[314440648,1708354263915,-548.38,0.00028219,2]
[314440649,1708354263931,-500.0,0.00028219,2]
[314440650,1708354263950,-500.0,0.00028219,2]
[314440651,1708354263968,-657.43,0.00028219,2]
[314440652,1708354263986,-2525.16,0.00028219,2]
[314440653,1708354264003,-500.0,0.00028219,2]
[314440654,1708354264017,-500.0,0.00028219,2]
[314440655,1708354264037,-584.36,0.00028219,2]
[314440656,1708354264053,-2389.41,0.00028219,2]
[314440657,1708354264071,-951.93,0.00028219,2]
[314440658,1708354264091,-500.0,0.00028219,2]
[314440659,1708354264103,-605.34,0.00028219,2]
[314440660,1708354264120,-500.0,0.00028219,2]
[314440661,1708354264135,-1517.89,0.00028219,2]
[314440662,1708354264150,-527.01219591,0.00028219,2]
[314440663,1708354264165,-500.0,0.00028219,2]
[314440664,1708354264180,-1806.52,0.00028219,2]
[314440665,1708354264194,-500.0,0.00028219,2]
[314440666,1708354264209,-500.0,0.00028219,2]
[314440667,1708354264223,-500.0,0.00028219,2]
[314440668,1708354264238,-500.0,0.00028219,2]
[314440669,1708354264252,-613.22,0.00028219,2]
[314440670,1708354264267,-500.0,0.00028219,2]
[314440671,1708354264283,-500.0,0.00028219,2]
[314440672,1708354264297,-484.46509009,0.00028219,2]
[314440673,1708354264312,-777.07,0.00028219,2]
[314440674,1708354264327,-25448.19,0.00028219,2]
[314440675,1708354264341,-500.0,0.00028219,2]
[314440676,1708354264355,-500.0,0.00028219,2]
[314440677,1708354264370,-745.62,0.00028219,2]
[314440678,1708354264384,-500.0,0.00028219,2]
[314440679,1708354264400,-1391.94,0.00028219,2]
[314440680,1708354264414,-500.0,0.00028219,2]
[314440681,1708354264429,-500.0,0.00028219,2]
[314440682,1708354264443,-500.0,0.00028219,2]
[314440683,1708354264458,-500.0,0.00028219,2]
[314440684,1708354264473,-500.0,0.00028219,2]
[314440685,1708354264486,-546.89,0.00028219,2]
[314440686,1708354264501,-36532.68,0.00028219,2]
[314440687,1708354264515,-500.0,0.00028219,2]
[314440688,1708354264529,-500.0,0.00028219,2]
[314440689,1708354264543,-3836.61,0.00028219,2]
[314440690,1708354264558,-504.33514855,0.00028219,2]
[314440691,1708354264572,-575.51,0.00028219,2]
[314440692,1708354264586,-500.0,0.00028219,2]
[314440693,1708354264600,-500.0,0.00028219,2]
[314440694,1708354264614,-500.0,0.00028219,2]
[314440695,1708354264628,-500.0,0.00028219,2]
[314440696,1708354264642,-1077.52,0.00028219,2]
[314440697,1708354264657,-500.0,0.00028219,2]
[314440698,1708354264670,-716.1,0.00028219,2]
[314440699,1708354264684,-16462.51,0.00028219,2]
[314440700,1708354264791,-1180.42,0.00028219,2]
[314440701,1708354264804,-500.0,0.00028219,2]
[314440702,1708354264813,-500.0,0.00028219,2]
[314440703,1708354264822,-500.0,0.00028219,2]
[314440704,1708354264831,-500.0,0.00028219,2]
[314440705,1708354264840,-636.44,0.00028219,2]
[314440706,1708354264850,-500.0,0.00028219,2]
[314440707,1708354264859,-500.0,0.00028219,2]
[314440708,1708354264868,-500.0,0.00028219,2]
[314440709,1708354264877,-381.18147896,0.00028219,2]
[314440710,1708354264886,-500.0,0.00028219,2]
[314440711,1708354264896,-500.0,0.00028219,2]
[314440712,1708354264905,-500.0,0.00028219,2]
[314440713,1708354264914,-500.0,0.00028219,2]
[314440714,1708354264924,-500.0,0.00028219,2]
[314440715,1708354264934,-500.0,0.00028219,2]
[314440716,1708354264943,-500.0,0.00028219,2]
[314440717,1708354264953,-2783.83,0.00028219,2]
[314440718,1708354264961,-500.0,0.00028219,2]
[314440719,1708354264971,-3622.61,0.00028219,2]
[314440720,1708354264980,-500.0,0.00028219,2]
[314440721,1708354264989,-500.0,0.00028219,2]
[314440722,1708354264998,-500.0,0.00028219,2]
[314440723,1708354265008,-513.8,0.00028219,2]
[314440724,1708354265018,-1202.24,0.00028219,2]
[314440725,1708354265028,-500.0,0.00028219,2]
[314440726,1708354265037,-4802.22,0.00028219,2]
[314440727,1708354265051,-500.0,0.00028219,2]
[314440728,1708354265061,-12001.78,0.00028219,2]
[314440729,1708354265070,-500.0,0.00028219,2]
[314440730,1708354265080,-500.0,0.00028219,2]
[314440731,1708354265089,-500.0,0.00028219,2]
[314440732,1708354265099,-500.0,0.00028219,2]
[314440733,1708354265108,-500.0,0.00028219,2]
[314440734,1708354265118,-2107.93,0.00028219,2]
[314440735,1708354265127,-500.0,0.00028219,2]
[314440736,1708354265137,-500.0,0.00028219,2]
[314440737,1708354265147,-16588.96,0.00028219,2]
[314440738,1708354265157,-502.73724751,0.00028219,2]
[314440739,1708354265167,-500.0,0.00028219,2]
[314440740,1708354265179,-500.0,0.00028219,2]
[314440741,1708354265189,-33364.76,0.00028219,2]
[314440742,1708354265198,-500.0,0.00028219,2]
[314440743,1708354265208,-500.0,0.00028219,2]
[314440744,1708354265218,-500.0,0.00028219,2]
[314440745,1708354265228,-500.0,0.00028219,2]
[314440746,1708354265237,-500.0,0.00028219,2]
[314440747,1708354265247,-4587.01,0.00028219,2]
[314440748,1708354265257,-4214.46,0.00028219,2]
[314440749,1708354265267,-6913.34,0.00028219,2]
[314440750,1708354265278,-500.0,0.00028219,2]
[314440751,1708354265288,-500.0,0.00028219,2]
[314440752,1708354265297,-500.0,0.00028219,2]
[314440753,1708354265307,-500.0,0.00028219,2]
[314440754,1708354265317,-500.0,0.00028219,2]
[314440755,1708354265327,-500.0,0.00028219,2]
[314440756,1708354265337,-404.23733178,0.00028219,2]
[314440757,1708354265347,-500.0,0.00028219,2]
[314440758,1708354265356,-872.81,0.00028219,2]
[314440759,1708354265366,-500.0,0.00028219,2]
[314440760,1708354265376,-2961.95,0.00028219,2]
[314440761,1708354265386,-500.0,0.00028219,2]
[314440762,1708354265396,-500.0,0.00028219,2]
[314440763,1708354265408,-591.16731188,0.00028219,2]
[314440764,1708354265418,-500.0,0.00028219,2]
[314440765,1708354265428,-2699.05,0.00028219,2]
[314440766,1708354265438,-500.0,0.00028219,2]
[314440767,1708354265448,-500.0,0.00028219,2]
[314440768,1708354265458,-500.0,0.00028219,2]
[314440769,1708354265467,-2133.3,0.00028219,2]
[314440770,1708354265477,-577.1705488,0.00028219,2]
[314440771,1708354265487,-500.0,0.00028219,2]
[314440772,1708354265497,-500.0,0.00028219,2]
[314440773,1708354265506,-500.0,0.00028219,2]
[314440774,1708354265515,-500.0,0.00028219,2]
[314440775,1708354265525,-771.6,0.00028219,2]
[314440776,1708354265534,-558.79,0.00028219,2]
[314440777,1708354265543,-3641.35,0.00028219,2]
[314440778,1708354265553,-878.75,0.00028219,2]
[314440779,1708354265562,-1018.76,0.00028219,2]
[314440780,1708354265572,-7048.41,0.00028219,2]
[314440781,1708354265581,-500.0,0.00028219,2]
[314440782,1708354265591,-500.0,0.00028219,2]
[314440783,1708354265601,-500.0,0.00028219,2]
[314440784,1708354265611,-501.47893991,0.00028219,2]
[314440785,1708354265620,-500.0,0.00028219,2]
[314440786,1708354265630,-500.0,0.00028219,2]
[314440787,1708354265639,-500.0,0.00028219,2]
[314440788,1708354265650,-604.80050754,0.00028219,2]
[314440789,1708354265660,-500.0,0.00028219,2]
[314440790,1708354265670,-200.0,0.00028219,2]
[314440791,1708354265679,-500.0,0.00028219,2]
[314440792,1708354265689,-500.0,0.00028219,2]
[314440793,1708354265698,-500.0,0.00028219,2]
[314440794,1708354265708,-617.55,0.00028219,2]
[314440795,1708354265718,-2069.33,0.00028219,2]
[314440796,1708354265727,-680.15,0.00028219,2]
[314440797,1708354265737,-500.0,0.00028219,2]
[314440798,1708354265746,-706.39,0.00028219,2]
[314440799,1708354265756,-850.47,0.00028219,2]
[314440800,1708354265765,-500.0,0.00028219,2]
[314440801,1708354265775,-500.0,0.00028219,2]
[314440802,1708354265784,-500.0,0.00028219,2]
[314440803,1708354265794,-1335.89,0.00028219,2]
[314440804,1708354265804,-1159.58,0.00028219,2]
[314440805,1708354265813,-500.0,0.00028219,2]
[314440806,1708354265823,-415.38325305,0.00028219,2]
[314440807,1708354265832,-390.0,0.00028219,2]
[314440808,1708354265842,-3533.09,0.00028219,2]
[314440809,1708354265853,-500.0,0.00028219,2]